Cogmind - Beta 13 @@@ ROGUE MODE // 2024.03.31 @ 16:57:15 Player: Harvey Danger Result: Destroyed by Y-45 Defender with Heavy Assault Rifle Performance ------------- Evolutions (1) 500 Regions Visited (2) 400 Robots Destroyed (33) 165 Value Destroyed (741) 741 Prototype IDs (0) 0 Alien Tech Used (0) 0 Bonus (0) 0 TOTAL SCORE: 1806 Bonus ------- None Cogmind --------- Core Integrity 0/400 Matter 281/300 Energy 91/100 System Corruption 0% Temperature Cool (24) Movement Core (700) Ox13 Location -9/Materials Parts ------- > --- POWER (1) -------- (None) > --- PROPULSION (4) --- (None) > --- UTILITY (2) ------ High-capacity Storage Unit Visual Processing Unit > --- WEAPON (2) ------- Light Assault Rifle > --- INVENTORY (20) --- Ion Engine Ion Engine Aluminum Leg Aluminum Leg Aluminum Leg Aluminum Leg Improved Heat Sink Advanced Weight Redist. System Advanced Weight Redist. System Improved Targeting Computer Improved Weapon Shielding EM Shotgun EM Shotgun Mini Grenade Launcher Mini Grenade Launcher Improved Datajack Peak State ------------ > --- POWER ------------ Light Nuclear Core > --- PROPULSION ------- Aluminum Leg Aluminum Leg Aluminum Leg Aluminum Leg > --- UTILITY ---------- High-capacity Storage Unit Visual Processing Unit > --- WEAPON ----------- Light Assault Rifle Light Assault Rifle > --- INVENTORY -------- Aluminum Leg Aluminum Leg Aluminum Leg Improved Heat Sink Advanced Weight Redist. System Advanced Weight Redist. System Improved Targeting Computer Improved Weapon Shielding EM Shotgun EM Shotgun Medium Laser Light Assault Rifle Mini Grenade Launcher Mini Grenade Launcher Improved Datajack [Rating: 15] Favorites ----------- Power Ion Engine Engine Ion Engine Power Core Light Nuclear Core Propulsion Aluminum Leg Leg Aluminum Leg Utility Small Storage Unit Device Sensor Array Storage Small Storage Unit Processor Visual Processing Unit Weapon Light Assault Rifle Energy Gun Medium Laser Ballistic Gun Light Assault Rifle Build | -11 -10 -9 ------- Run | Yrd Mat Mat Slots Evolved 2 | . . 2 Power . | . . . Propulsion 2 | . . 2 Utility . | . . . Weapon . | . . . Parts Attached 30 | 6 13 11 Power 6 | 1 3 2 Engine 5 | 1 3 1 Core 1 | . . 1 Reactor . | . . . Propulsion 7 | 2 3 2 Treads . | . . . Leg 7 | 2 3 2 Wheel . | . . . Hover . | . . . Flight . | . . . Utility 10 | 1 5 4 Device 2 | . 2 . Storage 7 | 1 2 4 Processor 1 | . 1 . Hackware . | . . . Protection . | . . . Artifact . | . . . Weapon 7 | 2 2 3 Energy Gun 2 | . 1 1 Energy Cannon . | . . . Ballistic Gun 5 | 2 1 2 Ballistic Cannon . | . . . Launcher . | . . . Special Weapon . | . . . Impact Weapon . | . . . Slashing Weapon . | . . . Piercing Weapon . | . . . Special Melee Weapon . | . . . Unidentified Prototypes . | . . . Parts Lost 16 | . 7 9 Power 3 | . 1 2 Propulsion 7 | . 3 4 Utility 1 | . 1 . Weapon 5 | . 2 3 Highest Loss Streak 8 | . 3 8 To Critical Strikes . | . . . Average Slot Usage (%) 97 | . 97 96 Engine 11 | . 13 6 Leg 30 | . 26 42 Device 6 | . 9 . Storage 12 | . 12 11 Processor 7 | . 5 11 Energy Gun 7 | . 8 5 Ballistic Gun 18 | . 19 16 Naked Turns . | . . . Heaviest Build 90 | 12 15 90 Greatest Support 40 | 20 20 40 Greatest Overweight (x) 2 | . 1 2 Average Overweight (x) . | . . . Largest Inventory Capacity 25 | 8 8 25 Average Capacity 9 | 7 7 16 Most Carried 18 | 5 8 18 Average Carried 7 | 3 6 12 Final Capacity 20 | 8 8 20 Final Carried 16 | 4 8 16 Class Distribution -------------------- 65% | Scavenger-Mutant 34% | Mutant Dominant Class ---------------- Scavenger-Mutant | -10/Materials Scavenger-Mutant | -9/Materials Resources | -11 -10 -9 ----------- Run | Yrd Mat Mat Matter Collected 828 | 190 508 130 Remotely . | . . . Salvage Created 1088 | . 789 299 Parts 73 | . 52 21 Haulers Intercepted . | . . . Recyclers Shooed 1 | . . 1 Parts Field Recycled . | . . . Retrieved Matter . | . . . Parts Self-Destructed . | . . . Prevented . | . . . Kills | -11 -10 -9 ------- Run | Yrd Mat Mat Combat Hostiles Destroyed 21 | . 15 6 Guns 21 | . 15 6 Classes Destroyed 7 | . 6 1 Worker 4 | . 4 . Builder 2 | . 2 . Recycler 2 | . 2 . Watcher 4 | . 3 1 Swarmer 5 | . 5 . Grunt 15 | . 10 5 Sentry 1 | . . 1 Best Kill Streak 5 | . 5 3 Combat Bots Only 3 | . 3 3 Max Kills in Single Turn 1 | . 1 1 Gunslinging . | . . . Exploded . | . . . Melee . | . . . Uniques/NPCs Destroyed . | . . . Combat | -11 -10 -9 -------- Run | Yrd Mat Mat Hostile Shots Fired 204 | . 98 106 Missed 47 | . 19 28 Damage Taken 1918 | . 842 1076 Core 529 | . 128 401 Absorbed by Shields . | . . . Core Remaining (%) 74 | 100 48 . Volleys Fired 121 | 1 83 37 Largest 2 | 2 2 2 Hottest 70 | 40 70 70 Shots Fired 236 | 2 163 71 Gun 236 | 2 163 71 Cannon . | . . . Launcher . | . . . Special . | . . . Kinetic 194 | 2 129 63 Thermal 42 | . 34 8 Explosive . | . . . Electromagnetic . | . . . Robot Hit Streak 17 | 2 12 17 Robot Miss Streak 5 | . 5 3 Penetration Max . | . . . Secondary Targets 1 | . . 1 Max Gunslinging Chain 1 | . . 1 Shots Hit Robots 153 | 2 100 51 Core Hits 64 | . 41 23 Critical Kills 1 | . 1 . Critical Parts Destroyed 1 | . 1 . Critical Strikes 3 | . 2 1 Burn 1 | . . 1 Destroy 2 | . 2 . Melee Attacks . | . . . Impact . | . . . Slashing . | . . . Piercing . | . . . Sneak Attacks . | . . . Combat Hostiles . | . . . Follow-up Attacks . | . . . Damage Inflicted 1708 | 23 1215 470 Guns 1697 | 23 1204 470 Cannons . | . . . Explosions . | . . . Melee . | . . . Ramming 11 | . 11 . Kinetic 1308 | 23 891 394 Thermal 389 | . 313 76 Explosive . | . . . Electromagnetic . | . . . Impact . | . . . Slashing . | . . . Piercing . | . . . Highest Corruption . | . . . Average Corruption . | . . . Corruption Purged . | . . . Corruption Blocked . | . . . Overload Shots . | . . . Overflow Damage . | . . . Projectiles . | . . . Explosions . | . . . Melee . | . . . Knockbacks . | . . . Impact . | . . . Kinetic . | . . . Secondary . | . . . Self-Inflicted Damage . | . . . Shots . | . . . Rammed . | . . . Targets Rammed 4 | . 3 1 Kicked 4 | . 3 1 Crushed . | . . . Highest Temperature 95 | . 95 60 Average Temperature 22 | . 26 17 Received Heat Transfer 867 | . 381 486 Siege Activations . | . . . Robots Corrupted . | . . . Combat Hostiles . | . . . Parts Fried . | . . . Impact Corruptions . | . . . Robots Melted . | . . . Combat Hostiles . | . . . Parts Melted 4 | . 4 . Heat Transferred 1221 | . 925 296 Parts Sabotaged . | . . . Parts Stolen . | . . . Parts Stripped . | . . . Power Chain Reactions . | . . . Alert | -11 -10 -9 ------- Run | Yrd Mat Mat Peak Influence 281 | . 281 166 Initial 4 | . . 4 Average 109 | . 130 73 Maximum Alert Level 1 | . 1 . Low Security (%) 86 | 100 81 100 Level 1 13 | . 18 . Level 2 . | . . . Level 3 . | . . . Level 4 . | . . . Level 5 . | . . . High Security . | . . . Max Security . | . . . Squads Dispatched 5 | . 3 2 Investigation 2 | . 1 1 Extermination . | . . . Reinforcement 3 | . 2 1 Assault . | . . . Garrison . | . . . Intercept . | . . . Searches Triggered . | . . . Construction Impeded . | . . . Haulers Reinforced . | . . . Active Scanning Responses . | . . . Cargo Convoy Interrupts . | . . . Stealth | -11 -10 -9 --------- Run | Yrd Mat Mat Distress Signals 4 | . 2 2 Communications Jammed . | . . . Distress Signals . | . . . Times Spotted 34 | . 22 12 Peak Tracking Total 4 | . 4 4 Tactical Retreats 1 | . 1 . Traps | -11 -10 -9 ------- Run | Yrd Mat Mat Traps Triggered 3 | . 2 1 Indirectly . | . . . Trap Hack Attempts . | . . . Triggered . | . . . Disarmed . | . . . Reprogrammed . | . . . Reused . | . . . Traps Extracted . | . . . Installed . | . . . Triggered . | . . . Machines | -11 -10 -9 ---------- Run | Yrd Mat Mat Machines Disabled 2 | . 2 . Max in Single Turn 1 | . 1 . Machines Repaired . | . . . Machines Dismantled . | . . . Machines Sabotaged . | . . . Overloaded Fab Kills . | . . . Hacking | -11 -10 -9 --------- Run | Yrd Mat Mat Machines Accessed . | . . . Terminals . | . . . Fabricators . | . . . Repair Stations . | . . . Recycling Units . | . . . Scanalyzers . | . . . Garrison Access . | . . . Total Hacks . | . . . Successful . | . . . Failed . | . . . Catastrophic . | . . . Database Lockouts . | . . . Manual . | . . . Terminals . | . . . Fabricators . | . . . Repair Stations . | . . . Recycling Units . | . . . Scanalyzers . | . . . Garrison Access . | . . . Terminal Hacks . | . . . Fabricator Hacks . | . . . Repair Station Hacks . | . . . Recycling Unit Hacks . | . . . Scanalyzer . | . . . Garrison Access Hacks . | . . . Unauthorized Hacks . | . . . Terminals . | . . . Fabricators . | . . . Repair Stations . | . . . Recycling Units . | . . . Scanalyzers . | . . . Garrison Access . | . . . Data Cores Recovered . | . . . Used . | . . . Hacking Detections . | . . . Full Trace Events . | . . . Feedback Events . | . . . Feedback Blocked . | . . . Robot Schematics Acquired . | . . . Robots Built . | . . . Authchips . | . . . Time . | . . . Total Robot Build Rating . | . . . Part Schematics Acquired . | . . . Parts Built . | . . . Authchips . | . . . Time . | . . . Total Part Build Rating . | . . . Parts Repaired . | . . . Time . | . . . Parts Recycled . | . . . Recycled Matter . | . . . Retrieved Matter . | . . . Retrieved Components . | . . . Parts Scanalyzed . | . . . Part Schematics Acquired . | . . . Parts Damaged . | . . . Bothacking | -11 -10 -9 ------------ Run | Yrd Mat Mat Used RIF Installer . | . . . Robots Hacked . | . . . Non-combat . | . . . Combat . | . . . Robot Hacks Applied . | . . . Relay Couplers Released . | . . . Fabnet Peak Effective % . | . . . Robots Rewired . | . . . Allies Hacked . | . . . Hacks Repelled . | . . . Allies | -11 -10 -9 -------- Run | Yrd Mat Mat Total Allies . | . . . Largest Group . | . . . Highest-Rated Group . | . . . Highest-Rated Ally . | . . . Total Orders . | . . . Ally Attacks . | . . . Total Damage . | . . . Kills . | . . . Allies Corrupted . | . . . Allies Melted . | . . . Intel | -11 -10 -9 ------- Run | Yrd Mat Mat Robot Analysis Total . | . . . Derelict Logs Recovered . | . . . Drone Launches . | . . . Drone Recoveries . | . . . Exploration | -11 -10 -9 ------------- Run | Yrd Mat Mat Turns Passed 1754 | 79 1232 443 Spaces Moved 929 | 41 718 170 Core 13 | 13 . . Treads . | . . . Legs 916 | 28 718 170 Wheels . | . . . Hover . | . . . Flight . | . . . Fastest Speed 50 | 50 120 120 Average Speed 129 | 97 124 158 Slowest Speed 260 | 120 190 260 Overloaded Moves . | . . . Propulsion Burnouts . | . . . Robots Hopped . | . . . Cave-ins Triggered . | . . . Exploration Rate (%) 39 | 4 93 20 Regions Visited 2 Branch Regions . Pre-discovered Areas . | . . . Known Exits Taken . | . . . Unknown Exits Taken 2 | 1 1 . Scrap Searched . | . . . Spaces Dug . | . . . Terrain Destroyed . | . . . Melee . | . . . Projectile . | . . . AOE . | . . . Terrain Rammed . | . . . Walls Destroyed . | . . . Machines Disabled . | . . . Actions | -11 -10 -9 --------- Run | Yrd Mat Mat Total 1261 | 78 901 282 Wait 124 | 21 58 45 Move 927 | 40 717 170 Hop . | . . . Pick Up 44 | 10 19 15 Fast Attach . | . . . Attach 19 | 6 8 5 Detach . | . . . Swap 11 | . 5 6 Drop 11 | . 8 3 Fire 121 | 1 83 37 Melee . | . . . Ram . | . . . Kick 4 | . 3 1 Crush . | . . . Escape Stasis . | . . . Rewire . | . . . Trap . | . . . Miscellaneous . | . . . Route ------- -11/Scrapyard -10/Materials (discovered 5 exits: [*Mat x3] / [*Min] / [*Sub]) -9/Materials History --------- Turn | Location | Event 8 | -11/Scrapyard | Discovered new exit (range 16) 80 | -11/Scrapyard | Entered Materials 307 | -10/Materials | Build established: Mutant 490 | -10/Materials | Discovered new exit (range 16) 592 | -10/Materials | Discovered new exit (range 7) 706 | -10/Materials | Discovered new exit (range 14) 829 | -10/Materials | Core integrity fell below 50% 838 | -10/Materials | Lost 3 parts (1p1n1u) 897 | -10/Materials | Build established: Scavenger-Mutant 1011 | -10/Materials | Discovered new exit (range 7) 1294 | -10/Materials | Discovered new exit (range 9) 1312 | -10/Materials | Entered another Materials area 1312 | -9/Materials | Evolved 2 slots: Propulsion x2 1744 | -9/Materials | Core integrity fell below 50% 1750 | -9/Materials | Core integrity fell below 20% 1755 | -9/Materials | Destroyed by Y-45 Defender with Heavy Assault Rifle Last Messages --------------- 01658_ R-06 Scavenger collects Aluminum Leg. 01661_ Triggered Alarm Trap. 01661_ An alarm sounds. 01661_ ALERT: Alarm triggered, dispatching investigation squad. 01668_ T-07 Excavator is excavating. 01715_ G-34 Mercenary destroyed. 01732_ Atomic Centrifuge disabled. 01732_ Aluminum Leg destroyed. 01735_ Critical hit (Burn: +37). 01735_ Lgt. Nuclear Core destroyed. 01735_ Aluminum Leg destroyed. 01736_ M-13 Machinist repairs G-34 Mercenary. 01737_ Aluminum Leg destroyed. 01738_ Lgt. Assault Rifle destroyed. 01738_ Kicked Y-45 Defender. 01741_ Aluminum Leg destroyed. 01743_ Lgt. Assault Rifle destroyed. 01749_ Critical hit (Burn: +37). 01752_ Med. Laser destroyed. Map ----- +----------------------------------------------------+ | ????????????????????????????????????????? | | ????????????????????????????????????????? | | ????????????????????????????????????????? | | ????????????????????????????????????????? | | ????????????????????????????????????????? | | ????????????????????????????????????????? | | ????????????????????????????????????????? | | ????????????????????????????????????????? | | ????????????????????????????????????????? | | ????????????????????????????????????????? | | ????????????????????????????????????????? | | ????????????????????????????????????????? | | ????????????????????????????????????????? | | ????????????????????????????????????????? | | ????????????????????????????????????????? | | ????????????????????????????????????????? | | ????????????????????????????????????????? | | ???????????????????????##???????????????? | | ????????????????######## ######?????????? | | ????????????????? # ! #?????????? | | ????????????????? """ """ # #?????????? | | ????????????????# """ "" Y# #?????????? | | ????????????# # """ """ # #?????????? | | ????????????# + g *# #?????????? | | ????????????????# mY![ %Y= #?????????? | | ????????????????# ![[ %@# #?????????? | | ????????????????#! ![ ]##/##### #????? | | ????????????????############ #????? | | ???????????????????????????# ######?????? | | ???????????????????????????# #?########## | | ???????????????????????????# #?# # | | ???????????????????????????# #?# """# | | ?????????????? ########### ### ! """# | | ???????????? # """# | | ???????????? + # | | ???????????? # """# | | ????????????? ### ####### # """# | | ???????????????????????????# # """# | | ???????????????????????????# # # | | ???????????????????????????# ########## | | ???????????????????????????#= *#????????? | | ???????????????????????????#*=*#????????? | | ???????????????????????????#%!%#####????? | | ???????????????????????????#= !#????? | | ???????????????????????????# ! !#????? | | ???????????????????????????# //#????? | | ???????????????????????????# /#????? | | ???????????????????????????# !#????? | | ???????????????????????????# !!#????? | | ???????????????????????????# ########## | +----------------------------------------------------+ Best States ------------- Heat Dissipation 39 Energy Generation 14 Energy Capacity 275 Matter Stores 300 Matter Capacity 300 Sight Range 18 Robot Scan Range 14 Terrain Scan Density 10 Evasion (%) 55 Item Schematics ----------------- None Robot Schematics ------------------ None Fabricated ------------ Nothing Alien Tech Used ----------------- None Achievements -------------- None Challenges ------------ None Game ------ Seed MakeshiftMetaAutogun Manual? 0 Play Time 00:26:51 Cumulative 4.0 hours Start 2024.03.31 @ 16:29:03 End 2024.03.31 @ 16:57:15 Sessions 1 Manual Loads 0 Difficulty Rogue Special Mode None Game No. 5 Rogue 5 Adventurer 0 Explorer 0 Win Type - Total 0 Types 0/0/0/0/0/0/0/0/0 Lore% 1 Gallery% 11 Achievement% 10 Wizard Run 0 Options --------- Layout 1 ASCII 0 Keyboard 0 Movement Mouse Keybinds 0 Fullscreen 1 Font 24/Smallcaps Map View 50x35 Zoom Use 0% Tactical HUD 1 Map Filters NONE Filters NONE Steam 1 RUN: f3dd9536-2b7d-4cc0-b763-805d5d53f113